[Event "Titled Tuesday Blitz July 18 Early 2023"]
[White "Tanmay Jain"]
[Black "Timofeev, Artyom"]
[WhiteFideId "45015481"]
[BlackFideId "4140419"]
[WhiteElo "2449"]
[BlackElo "2839"]
[Result "0-1"]
[Round "1"]
[TimeControl "180+2"]
[Date "2023.07.18"]
[WhiteClock "0:00:02"]
[BlackClock "0:01:11"]
[Board "51"]

1. Nf3 {[%clk 0:02:58]}  Nf6 {[%clk 0:02:58]} 2. d4 {[%clk 0:02:58]}  g6 {[%clk 0:02:58]} 3. g3 {[%clk 0:02:58]}  Bg7 {[%clk 0:02:57]} 4. Bg2 {[%clk 0:02:58]}  d5 {[%clk 0:02:57]} 5. O-O {[%clk 0:02:58]}  O-O {[%clk 0:02:57]} 6. c3 {[%clk 0:02:57]}  Nc6 {[%clk 0:02:47]} 7. Bf4 {[%clk 0:02:49]}  Nh5 {[%clk 0:02:44]} 8. Nbd2 {[%clk 0:02:38]}  Nxf4 {[%clk 0:02:43]} 9. gxf4 {[%clk 0:02:39]}  e6 {[%clk 0:02:41]} 10. e3 {[%clk 0:02:32]}  b6 {[%clk 0:02:39]} 11. Ne5 {[%clk 0:02:27]}  Ne7 {[%clk 0:02:39]} 12. c4 {[%clk 0:02:18]}  c5 {[%clk 0:02:38]} 13. Ndf3 {[%clk 0:02:11]}  Bb7 {[%clk 0:02:36]} 14. dxc5 {[%clk 0:01:55]}  bxc5 {[%clk 0:02:35]} 15. Qc2 {[%clk 0:01:51]}  Qc7 {[%clk 0:02:31]} 16. Rac1 {[%clk 0:01:45]}  d4 {[%clk 0:02:29]} 17. Rfd1 {[%clk 0:01:28]}  Nf5 {[%clk 0:02:27]} 18. e4 {[%clk 0:01:20]}  Ne7 {[%clk 0:02:22]} 19. Re1 {[%clk 0:01:17]}  a5 {[%clk 0:02:18]} 20. Nd3 {[%clk 0:01:12]}  Qb6 {[%clk 0:02:16]} 21. Nd2 {[%clk 0:01:06]}  Nc6 {[%clk 0:02:14]} 22. e5 {[%clk 0:00:55]}  Nb4 {[%clk 0:02:14]} 23. Nxb4 {[%clk 0:00:48]}  axb4 {[%clk 0:02:14]} 24. Bxb7 {[%clk 0:00:48]}  Qxb7 {[%clk 0:02:13]} 25. b3 {[%clk 0:00:43]}  Rfd8 {[%clk 0:02:12]} 26. Ne4 {[%clk 0:00:40]}  Qa7 {[%clk 0:02:09]} 27. Ra1 {[%clk 0:00:34]}  d3 {[%clk 0:02:07]} 28. Qd2 {[%clk 0:00:33]}  Rd4 {[%clk 0:02:07]} 29. Re3 {[%clk 0:00:30]}  Rad8 {[%clk 0:02:02]} 30. Rae1 {[%clk 0:00:22]}  Qb6 {[%clk 0:02:01]} 31. Rh3 {[%clk 0:00:20]}  Qc6 {[%clk 0:02:00]} 32. f3 {[%clk 0:00:13]}  Qc7 {[%clk 0:01:45]} 33. Kh1 {[%clk 0:00:12]}  Qe7 {[%clk 0:01:44]} 34. Rg1 {[%clk 0:00:12]}  Ra8 {[%clk 0:01:36]} 35. Rg2 {[%clk 0:00:13]}  Rf8 {[%clk 0:01:26]} 36. Rhg3 {[%clk 0:00:12]}  f5 {[%clk 0:01:21]} 37. Nf2 {[%clk 0:00:10]}  Bh6 {[%clk 0:01:17]} 38. Nh3 {[%clk 0:00:10]}  Qh4 {[%clk 0:01:17]} 39. Ng5 {[%clk 0:00:04]}  Bxg5 {[%clk 0:01:15]} 40. fxg5 {[%clk 0:00:05]}  Qf4 {[%clk 0:01:12]} 41. Qxf4 {[%clk 0:00:03]}  Rxf4 {[%clk 0:01:12]} 42. Rd2 {[%clk 0:00:04]}  Rd8 {[%clk 0:01:13]} 43. Kg1 {[%clk 0:00:03]}  Kg7 {[%clk 0:01:12]} 44. Kf2 {[%clk 0:00:04]}  h6 {[%clk 0:01:13]} 45. Ke3 {[%clk 0:00:03]}  Rfd4 {[%clk 0:01:12]} 46. gxh6+ {[%clk 0:00:03]}  Kxh6 {[%clk 0:01:12]} 47. Rdg2 {[%clk 0:00:03]}  f4+ {[%clk 0:01:11]} 48. Kd2 {[%clk 0:00:02]}  fxg3 {[%clk 0:01:11]} 0-1


[Site "https://www.chess.com"]

[Event "Titled Tuesday Blitz July 18 Early 2023"]
[White "Fridman, Daniel"]
[Black "Delorme, Axel"]
[WhiteFideId "11600454"]
[BlackFideId "632023"]
[WhiteElo "2838"]
[BlackElo "2448"]
[Result "1-0"]
[Round "1"]
[TimeControl "180+2"]
[Date "2023.07.18"]
[WhiteClock "0:01:48"]
[BlackClock "0:00:05"]
[Board "52"]

1. d4 {[%clk 0:02:59]}  d5 {[%clk 0:02:59]} 2. Nf3 {[%clk 0:02:58]}  e6 {[%clk 0:02:59]} 3. c4 {[%clk 0:02:58]}  c6 {[%clk 0:02:59]} 4. Bg5 {[%clk 0:02:57]}  Be7 {[%clk 0:02:58]} 5. Bxe7 {[%clk 0:02:57]}  Qxe7 {[%clk 0:02:59]} 6. e3 {[%clk 0:02:57]}  Nf6 {[%clk 0:03:00]} 7. Nc3 {[%clk 0:02:56]}  O-O {[%clk 0:02:59]} 8. h3 {[%clk 0:02:53]}  dxc4 {[%clk 0:02:56]} 9. Bxc4 {[%clk 0:02:52]}  c5 {[%clk 0:02:56]} 10. O-O {[%clk 0:02:47]}  Nc6 {[%clk 0:02:53]} 11. dxc5 {[%clk 0:02:42]}  Qxc5 {[%clk 0:02:52]} 12. Qe2 {[%clk 0:02:43]}  b6 {[%clk 0:02:49]} 13. Rac1 {[%clk 0:02:41]}  Bb7 {[%clk 0:02:48]} 14. a3 {[%clk 0:02:38]}  Rfd8 {[%clk 0:02:41]} 15. Ba6 {[%clk 0:02:33]}  Bxa6 {[%clk 0:02:09]} 16. Qxa6 {[%clk 0:02:34]}  Qa5 {[%clk 0:01:37]} 17. Qb7 {[%clk 0:02:21]}  Rac8 {[%clk 0:01:08]} 18. b4 {[%clk 0:02:13]}  Qxa3 {[%clk 0:00:24]} 19. Nb5 {[%clk 0:02:11]}  Qxb4 {[%clk 0:00:24]} 20. Rxc6 {[%clk 0:02:11]}  Rxc6 {[%clk 0:00:25]} 21. Qxc6 {[%clk 0:02:11]}  h6 {[%clk 0:00:16]} 22. Nxa7 {[%clk 0:02:08]}  Qa5 {[%clk 0:00:15]} 23. Nb5 {[%clk 0:02:06]}  Nd5 {[%clk 0:00:14]} 24. Nbd4 {[%clk 0:01:58]}  Rb8 {[%clk 0:00:05]} 25. Qb5 {[%clk 0:01:48]} 1-0


[Site "https://www.chess.com"]

[Event "Titled Tuesday Blitz July 18 Early 2023"]
[White "Pakleza, Zbigniew"]
[Black "Arnold, Ken"]
[WhiteFideId "1119290"]
[BlackFideId "2056836"]
[WhiteElo "2811"]
[BlackElo "2446"]
[Result "1-0"]
[Round "1"]
[TimeControl "180+2"]
[Date "2023.07.18"]
[WhiteClock "0:00:50"]
[BlackClock "0:00:30"]
[Board "54"]

1. d4 {[%clk 0:03:00]}  c6 {[%clk 0:03:00]} 2. c4 {[%clk 0:02:58]}  Nf6 {[%clk 0:03:00]} 3. Nc3 {[%clk 0:02:58]}  d5 {[%clk 0:03:00]} 4. cxd5 {[%clk 0:02:59]}  cxd5 {[%clk 0:03:00]} 5. Nf3 {[%clk 0:02:59]}  Nc6 {[%clk 0:03:00]} 6. Bf4 {[%clk 0:02:59]}  e6 {[%clk 0:03:00]} 7. e3 {[%clk 0:02:59]}  Bd6 {[%clk 0:03:00]} 8. Bg3 {[%clk 0:02:59]}  O-O {[%clk 0:02:59]} 9. Bd3 {[%clk 0:02:59]}  a6 {[%clk 0:02:59]} 10. Rc1 {[%clk 0:02:59]}  Re8 {[%clk 0:02:56]} 11. Ne5 {[%clk 0:02:53]}  Ne7 {[%clk 0:02:31]} 12. O-O {[%clk 0:02:44]}  Ng6 {[%clk 0:02:29]} 13. f4 {[%clk 0:02:42]}  Qe7 {[%clk 0:02:26]} 14. Qb3 {[%clk 0:02:21]}  Rb8 {[%clk 0:01:59]} 15. Rc2 {[%clk 0:02:10]}  Bd7 {[%clk 0:01:57]} 16. Rfc1 {[%clk 0:02:07]}  b5 {[%clk 0:01:47]} 17. Ne2 {[%clk 0:01:48]}  Rec8 {[%clk 0:01:41]} 18. Nc6 {[%clk 0:01:34]}  Bxc6 {[%clk 0:01:40]} 19. Rxc6 {[%clk 0:01:35]}  Qb7 {[%clk 0:01:14]} 20. Rxd6 {[%clk 0:01:14]}  Rxc1+ {[%clk 0:01:13]} 21. Nxc1 {[%clk 0:01:15]}  Qc7 {[%clk 0:01:12]} 22. Ne2 {[%clk 0:01:06]}  Qxd6 {[%clk 0:00:44]} 23. f5 {[%clk 0:01:05]}  e5 {[%clk 0:00:37]} 24. fxg6 {[%clk 0:01:03]}  Rc8 {[%clk 0:00:30]} 25. dxe5 {[%clk 0:00:50]} 1-0


[Site "https://www.chess.com"]

[Event "Titled Tuesday Blitz July 18 Early 2023"]
[White "Namitbir Singh Walia"]
[Black "Mischuk, Dmitry"]
[WhiteFideId "35071068"]
[BlackFideId "14118734"]
[WhiteElo "2446"]
[BlackElo "2808"]
[Result "1-0"]
[Round "1"]
[TimeControl "180+2"]
[Date "2023.07.18"]
[WhiteClock "0:01:22"]
[BlackClock "0:01:22"]
[Board "55"]

1. e4 {[%clk 0:02:41]}  c5 {[%clk 0:03:00]} 2. Nf3 {[%clk 0:02:40]}  d6 {[%clk 0:03:00]} 3. d4 {[%clk 0:02:41]}  cxd4 {[%clk 0:03:01]} 4. Nxd4 {[%clk 0:02:42]}  Nf6 {[%clk 0:03:02]} 5. f3 {[%clk 0:02:43]}  e5 {[%clk 0:03:01]} 6. Nb3 {[%clk 0:02:43]}  d5 {[%clk 0:03:02]} 7. Bg5 {[%clk 0:02:42]}  Be6 {[%clk 0:03:02]} 8. Bxf6 {[%clk 0:02:42]}  gxf6 {[%clk 0:03:01]} 9. exd5 {[%clk 0:02:42]}  Qxd5 {[%clk 0:03:02]} 10. Qxd5 {[%clk 0:02:43]}  Bxd5 {[%clk 0:03:03]} 11. Nc3 {[%clk 0:02:43]}  Be6 {[%clk 0:03:04]} 12. O-O-O {[%clk 0:02:40]}  Nc6 {[%clk 0:03:03]} 13. Nd5 {[%clk 0:02:18]}  Bh6+ {[%clk 0:02:59]} 14. Kb1 {[%clk 0:02:18]}  Rd8 {[%clk 0:02:49]} 15. Bc4 {[%clk 0:01:59]}  f5 {[%clk 0:02:49]} 16. Nc5 {[%clk 0:01:48]}  Nd4 {[%clk 0:02:15]} 17. Nc7+ {[%clk 0:01:42]}  Ke7 {[%clk 0:02:14]} 18. N7xe6 {[%clk 0:01:42]}  Nxe6 {[%clk 0:02:07]} 19. Nxb7 {[%clk 0:01:29]}  Rc8 {[%clk 0:01:58]} 20. Nd6 {[%clk 0:01:24]}  Rc6 {[%clk 0:01:43]} 21. Nxf5+ {[%clk 0:01:23]}  Kf6 {[%clk 0:01:43]} 22. Bxe6 {[%clk 0:01:24]}  Bf4 {[%clk 0:01:22]} 23. Bd7 {[%clk 0:01:23]}  Rc7 {[%clk 0:01:23]} 24. Rd6+ {[%clk 0:01:21]}  Kg5 {[%clk 0:01:22]} 25. h4+ {[%clk 0:01:22]}  Kh5 {[%clk 0:01:22]} 26. g4# {[%clk 0:01:22]} 1-0


[Site "https://www.chess.com"]

[Event "Titled Tuesday Blitz July 18 Early 2023"]
[White "Starosta, Martyna"]
[Black "Kosteniuk, Alexandra"]
[WhiteFideId "21818754"]
[BlackFideId "4128125"]
[WhiteElo "2443"]
[BlackElo "2799"]
[Result "0-1"]
[Round "1"]
[TimeControl "180+2"]
[Date "2023.07.18"]
[WhiteClock "0:00:03"]
[BlackClock "0:00:55"]
[Board "57"]

1. e4 {[%clk 0:02:59]}  c6 {[%clk 0:02:47]} 2. d4 {[%clk 0:02:56]}  d5 {[%clk 0:02:47]} 3. exd5 {[%clk 0:02:55]}  cxd5 {[%clk 0:02:46]} 4. c4 {[%clk 0:02:56]}  Nf6 {[%clk 0:02:45]} 5. Nc3 {[%clk 0:02:56]}  Nc6 {[%clk 0:02:45]} 6. Nf3 {[%clk 0:02:57]}  g6 {[%clk 0:02:41]} 7. c5 {[%clk 0:02:45]}  Bg7 {[%clk 0:02:39]} 8. Bd3 {[%clk 0:02:45]}  O-O {[%clk 0:02:39]} 9. O-O {[%clk 0:02:46]}  Bg4 {[%clk 0:02:39]} 10. Be3 {[%clk 0:02:43]}  Ne8 {[%clk 0:02:38]} 11. h3 {[%clk 0:02:41]}  Bxf3 {[%clk 0:02:37]} 12. Qxf3 {[%clk 0:02:42]}  Nc7 {[%clk 0:02:32]} 13. Rad1 {[%clk 0:02:15]}  Nxd4 {[%clk 0:02:25]} 14. Qg4 {[%clk 0:02:01]}  Nde6 {[%clk 0:02:20]} 15. Bc2 {[%clk 0:01:39]}  d4 {[%clk 0:02:14]} 16. Ne2 {[%clk 0:01:35]}  h5 {[%clk 0:01:41]} 17. Qh4 {[%clk 0:01:31]}  Nb5 {[%clk 0:01:19]} 18. a4 {[%clk 0:01:27]}  Qc8 {[%clk 0:01:17]} 19. Bc1 {[%clk 0:00:53]}  Qxc5 {[%clk 0:01:15]} 20. Bxg6 {[%clk 0:00:51]}  fxg6 {[%clk 0:01:14]} 21. axb5 {[%clk 0:00:51]}  Qxb5 {[%clk 0:01:13]} 22. Qxe7 {[%clk 0:00:43]}  Rae8 {[%clk 0:01:04]} 23. Qd6 {[%clk 0:00:27]}  Qxe2 {[%clk 0:01:03]} 24. Rde1 {[%clk 0:00:27]}  Qc4 {[%clk 0:01:01]} 25. Re4 {[%clk 0:00:11]}  Qc6 {[%clk 0:00:58]} 26. Qxc6 {[%clk 0:00:09]}  bxc6 {[%clk 0:00:58]} 27. Rfe1 {[%clk 0:00:09]}  Nc7 {[%clk 0:00:57]} 28. Bg5 {[%clk 0:00:06]}  Rxe4 {[%clk 0:00:55]} 29. Rxe4 {[%clk 0:00:07]}  Re8 {[%clk 0:00:55]} 30. Rxe8+ {[%clk 0:00:06]}  Nxe8 {[%clk 0:00:55]} 31. Kf1 {[%clk 0:00:07]}  d3 {[%clk 0:00:55]} 32. Ke1 {[%clk 0:00:03]}  Nd6 {[%clk 0:00:55]} 0-1


[Site "https://www.chess.com"]

[Event "Titled Tuesday Blitz July 18 Early 2023"]
[White "Stribuk, Artiom"]
[Black "LangesNasenhaar"]
[WhiteFideId "13515659"]
[WhiteElo "2787"]
[BlackElo "2436"]
[Result "1/2-1/2"]
[Round "1"]
[TimeControl "180+2"]
[Date "2023.07.18"]
[WhiteClock "0:00:05"]
[BlackClock "0:00:03"]
[Board "60"]

1. d4 {[%clk 0:03:00]}  g6 {[%clk 0:02:57]} 2. Nf3 {[%clk 0:03:00]}  Bg7 {[%clk 0:02:57]} 3. g3 {[%clk 0:03:00]}  c5 {[%clk 0:02:54]} 4. c3 {[%clk 0:02:56]}  b6 {[%clk 0:02:50]} 5. Bg2 {[%clk 0:02:55]}  Bb7 {[%clk 0:02:50]} 6. O-O {[%clk 0:02:54]}  Nf6 {[%clk 0:02:51]} 7. Nbd2 {[%clk 0:02:50]}  O-O {[%clk 0:02:48]} 8. Re1 {[%clk 0:02:50]}  d6 {[%clk 0:02:43]} 9. e4 {[%clk 0:02:50]}  cxd4 {[%clk 0:02:41]} 10. cxd4 {[%clk 0:02:50]}  Nc6 {[%clk 0:02:42]} 11. b3 {[%clk 0:02:50]}  Nb4 {[%clk 0:02:34]} 12. Ba3 {[%clk 0:02:38]}  a5 {[%clk 0:02:29]} 13. h3 {[%clk 0:02:14]}  Rc8 {[%clk 0:02:26]} 14. Bxb4 {[%clk 0:02:11]}  axb4 {[%clk 0:02:25]} 15. a3 {[%clk 0:02:12]}  bxa3 {[%clk 0:02:19]} 16. Rxa3 {[%clk 0:02:13]}  Ra8 {[%clk 0:02:17]} 17. Rxa8 {[%clk 0:01:39]}  Qxa8 {[%clk 0:02:16]} 18. e5 {[%clk 0:01:40]}  dxe5 {[%clk 0:02:03]} 19. dxe5 {[%clk 0:01:40]}  Ne4 {[%clk 0:01:56]} 20. Nxe4 {[%clk 0:01:00]}  Bxe4 {[%clk 0:01:55]} 21. Nh4 {[%clk 0:01:01]}  Bxg2 {[%clk 0:01:49]} 22. Nxg2 {[%clk 0:01:02]}  Rd8 {[%clk 0:01:44]} 23. Qe2 {[%clk 0:01:02]}  Qd5 {[%clk 0:01:40]} 24. b4 {[%clk 0:00:51]}  Qd2 {[%clk 0:01:33]} 25. e6 {[%clk 0:00:29]}  f5 {[%clk 0:01:23]} 26. Ne3 {[%clk 0:00:19]}  Qxe2 {[%clk 0:01:14]} 27. Rxe2 {[%clk 0:00:20]}  Rd4 {[%clk 0:01:14]} 28. Rc2 {[%clk 0:00:12]}  Be5 {[%clk 0:00:54]} 29. b5 {[%clk 0:00:09]}  Bd6 {[%clk 0:00:36]} 30. Rc8+ {[%clk 0:00:04]}  Kg7 {[%clk 0:00:35]} 31. Rd8 {[%clk 0:00:04]}  Kf6 {[%clk 0:00:29]} 32. Rh8 {[%clk 0:00:04]}  h5 {[%clk 0:00:27]} 33. Kf1 {[%clk 0:00:03]}  Kxe6 {[%clk 0:00:25]} 34. Ke2 {[%clk 0:00:04]}  Rb4 {[%clk 0:00:22]} 35. Rg8 {[%clk 0:00:03]}  Kf7 {[%clk 0:00:21]} 36. Rc8 {[%clk 0:00:03]}  Rxb5 {[%clk 0:00:20]} 37. Kd3 {[%clk 0:00:03]}  Bc5 {[%clk 0:00:16]} 38. Nc4 {[%clk 0:00:04]}  Rb3+ {[%clk 0:00:16]} 39. Kc2 {[%clk 0:00:04]}  Rb4 {[%clk 0:00:14]} 40. Kc3 {[%clk 0:00:04]}  Rb1 {[%clk 0:00:13]} 41. Rc6 {[%clk 0:00:04]}  Rc1+ {[%clk 0:00:12]} 42. Kd3 {[%clk 0:00:04]}  Rf1 {[%clk 0:00:09]} 43. Ne5+ {[%clk 0:00:05]}  Kg7 {[%clk 0:00:09]} 44. Rxg6+ {[%clk 0:00:05]}  Kh7 {[%clk 0:00:09]} 45. f4 {[%clk 0:00:05]}  Bd6 {[%clk 0:00:07]} 46. Rg5 {[%clk 0:00:05]}  Bxe5 {[%clk 0:00:06]} 47. fxe5 {[%clk 0:00:06]}  e6 {[%clk 0:00:07]} 48. Rxh5+ {[%clk 0:00:06]}  Kg6 {[%clk 0:00:06]} 49. Rh8 {[%clk 0:00:06]}  Rf3+ {[%clk 0:00:07]} 50. Ke2 {[%clk 0:00:07]}  Rb3 {[%clk 0:00:05]} 51. Rf8 {[%clk 0:00:07]}  Rb2+ {[%clk 0:00:04]} 52. Kf3 {[%clk 0:00:07]}  Rb3+ {[%clk 0:00:05]} 53. Kf4 {[%clk 0:00:07]}  Rb4+ {[%clk 0:00:06]} 54. Kf3 {[%clk 0:00:08]}  Rb3+ {[%clk 0:00:06]} 55. Kf2 {[%clk 0:00:08]}  Rb2+ {[%clk 0:00:07]} 56. Ke1 {[%clk 0:00:09]}  Rb3 {[%clk 0:00:06]} 57. Ke2 {[%clk 0:00:08]}  Kg5 {[%clk 0:00:07]} 58. Rg8+ {[%clk 0:00:06]}  Kh5 {[%clk 0:00:07]} 59. Re8 {[%clk 0:00:04]}  Rxg3 {[%clk 0:00:06]} 60. Rxe6 {[%clk 0:00:04]}  Rxh3 {[%clk 0:00:05]} 61. Rxb6 {[%clk 0:00:04]}  Kg4 {[%clk 0:00:05]} 62. e6 {[%clk 0:00:05]}  Rh7 {[%clk 0:00:02]} 63. Kd3 {[%clk 0:00:05]}  Re7 {[%clk 0:00:03]} 64. Kd4 {[%clk 0:00:06]}  Kg5 {[%clk 0:00:03]} 65. Ke5 {[%clk 0:00:06]}  f4 {[%clk 0:00:04]} 66. Rb1 {[%clk 0:00:06]}  Kg4 {[%clk 0:00:03]} 67. Rg1+ {[%clk 0:00:06]}  Kf3 {[%clk 0:00:03]} 68. Rf1+ {[%clk 0:00:07]}  Ke3 {[%clk 0:00:04]} 69. Kf6 {[%clk 0:00:07]}  Re8 {[%clk 0:00:03]} 70. e7 {[%clk 0:00:06]}  Rxe7 {[%clk 0:00:03]} 71. Re1+ {[%clk 0:00:05]}  Kd2 {[%clk 0:00:02]} 72. Rxe7 {[%clk 0:00:06]}  f3 {[%clk 0:00:03]} 73. Kg5 {[%clk 0:00:05]}  f2 {[%clk 0:00:03]} 74. Rf7 {[%clk 0:00:05]}  Ke2 {[%clk 0:00:03]} 75. Rxf2+ {[%clk 0:00:05]}  Kxf2 {[%clk 0:00:03]} 1/2-1/2


[Site "https://www.chess.com"]

[Event "Titled Tuesday Blitz July 18 Early 2023"]
[White "Krzyzanowski, Marcin"]
[Black "Rosh Jain"]
[WhiteFideId "1132199"]
[BlackFideId "25789465"]
[WhiteElo "2776"]
[BlackElo "2434"]
[Result "1-0"]
[Round "1"]
[TimeControl "180+2"]
[Date "2023.07.18"]
[WhiteClock "0:00:24"]
[BlackClock "0:00:13"]
[Board "62"]

1. Nf3 {[%clk 0:03:00]}  d5 {[%clk 0:02:59]} 2. g3 {[%clk 0:02:59]}  e6 {[%clk 0:02:59]} 3. Bg2 {[%clk 0:02:59]}  Nf6 {[%clk 0:03:00]} 4. O-O {[%clk 0:02:59]}  Be7 {[%clk 0:03:00]} 5. c4 {[%clk 0:03:00]}  O-O {[%clk 0:03:01]} 6. b3 {[%clk 0:02:58]}  c5 {[%clk 0:03:01]} 7. cxd5 {[%clk 0:02:55]}  exd5 {[%clk 0:03:01]} 8. d4 {[%clk 0:02:54]}  Nc6 {[%clk 0:03:00]} 9. Bb2 {[%clk 0:02:51]}  Bf5 {[%clk 0:02:59]} 10. Nc3 {[%clk 0:02:49]}  Rc8 {[%clk 0:02:55]} 11. Rc1 {[%clk 0:02:47]}  cxd4 {[%clk 0:02:55]} 12. Nxd4 {[%clk 0:02:47]}  Nxd4 {[%clk 0:02:55]} 13. Qxd4 {[%clk 0:02:48]}  Bc5 {[%clk 0:02:56]} 14. Qf4 {[%clk 0:02:32]}  Be6 {[%clk 0:02:46]} 15. Rcd1 {[%clk 0:02:25]}  Qa5 {[%clk 0:02:18]} 16. a3 {[%clk 0:01:24]}  Qb6 {[%clk 0:01:31]} 17. b4 {[%clk 0:01:20]}  Bd6 {[%clk 0:01:31]} 18. Qd2 {[%clk 0:01:18]}  Rfd8 {[%clk 0:01:08]} 19. Na4 {[%clk 0:01:17]}  Qa6 {[%clk 0:01:05]} 20. Bxf6 {[%clk 0:01:16]}  Qxa4 {[%clk 0:01:03]} 21. Bxd8 {[%clk 0:01:14]}  Rxd8 {[%clk 0:01:03]} 22. Qb2 {[%clk 0:01:08]}  Be7 {[%clk 0:01:02]} 23. Rd2 {[%clk 0:01:04]}  Bf6 {[%clk 0:01:02]} 24. Qb1 {[%clk 0:00:54]}  Qxa3 {[%clk 0:00:59]} 25. Rfd1 {[%clk 0:00:51]}  d4 {[%clk 0:00:42]} 26. Bxb7 {[%clk 0:00:48]}  Rb8 {[%clk 0:00:39]} 27. Bg2 {[%clk 0:00:41]}  Rxb4 {[%clk 0:00:38]} 28. Qe4 {[%clk 0:00:40]}  Rb8 {[%clk 0:00:34]} 29. h4 {[%clk 0:00:39]}  h6 {[%clk 0:00:33]} 30. g4 {[%clk 0:00:36]}  g6 {[%clk 0:00:32]} 31. Qf4 {[%clk 0:00:33]}  Rb2 {[%clk 0:00:14]} 32. Rxb2 {[%clk 0:00:28]}  Qxb2 {[%clk 0:00:15]} 33. Qxf6 {[%clk 0:00:28]}  Qxe2 {[%clk 0:00:15]} 34. Rxd4 {[%clk 0:00:24]}  Qe1+ {[%clk 0:00:13]} 35. Kh2 {[%clk 0:00:24]} 1-0


[Site "https://www.chess.com"]

[Event "Titled Tuesday Blitz July 18 Early 2023"]
[White "Uzcategui Rodriguez, Alejandro"]
[Black "Wagner, Dennis"]
[WhiteFideId "3903400"]
[BlackFideId "24650684"]
[WhiteElo "2433"]
[BlackElo "2770"]
[Result "0-1"]
[Round "1"]
[TimeControl "180+2"]
[Date "2023.07.18"]
[WhiteClock "0:00:27"]
[BlackClock "0:00:13"]
[Board "65"]

1. d4 {[%clk 0:02:58]}  Nf6 {[%clk 0:02:57]} 2. Nf3 {[%clk 0:02:58]}  e6 {[%clk 0:02:56]} 3. Bg5 {[%clk 0:02:58]}  h6 {[%clk 0:02:50]} 4. Bh4 {[%clk 0:02:58]}  b6 {[%clk 0:02:47]} 5. Nbd2 {[%clk 0:02:58]}  Bb7 {[%clk 0:02:47]} 6. e3 {[%clk 0:02:59]}  d6 {[%clk 0:02:40]} 7. Bd3 {[%clk 0:02:58]}  g5 {[%clk 0:02:35]} 8. Bg3 {[%clk 0:02:58]}  Nh5 {[%clk 0:02:36]} 9. c3 {[%clk 0:02:58]}  Nd7 {[%clk 0:02:34]} 10. Qe2 {[%clk 0:02:57]}  Bg7 {[%clk 0:02:33]} 11. e4 {[%clk 0:02:56]}  Qe7 {[%clk 0:02:32]} 12. a4 {[%clk 0:02:53]}  a6 {[%clk 0:02:31]} 13. e5 {[%clk 0:02:48]}  Nf4 {[%clk 0:02:06]} 14. Bxf4 {[%clk 0:02:47]}  gxf4 {[%clk 0:02:07]} 15. Be4 {[%clk 0:02:41]}  d5 {[%clk 0:01:57]} 16. Bd3 {[%clk 0:02:41]}  c5 {[%clk 0:01:57]} 17. g3 {[%clk 0:02:29]}  fxg3 {[%clk 0:01:49]} 18. hxg3 {[%clk 0:02:30]}  O-O {[%clk 0:01:37]} 19. Nh4 {[%clk 0:02:25]}  cxd4 {[%clk 0:01:34]} 20. cxd4 {[%clk 0:02:26]}  Qb4 {[%clk 0:01:29]} 21. Qe3 {[%clk 0:02:12]}  Nxe5 {[%clk 0:01:20]} 22. dxe5 {[%clk 0:02:04]}  d4 {[%clk 0:01:21]} 23. Qf4 {[%clk 0:01:48]}  Bxh1 {[%clk 0:01:21]} 24. Ke2 {[%clk 0:01:48]}  Bd5 {[%clk 0:01:19]} 25. g4 {[%clk 0:01:40]}  Qe7 {[%clk 0:01:13]} 26. Nhf3 {[%clk 0:01:38]}  f6 {[%clk 0:01:03]} 27. Qg3 {[%clk 0:01:21]}  a5 {[%clk 0:00:37]} 28. Rh1 {[%clk 0:01:10]}  Rac8 {[%clk 0:00:36]} 29. exf6 {[%clk 0:01:01]}  Qxf6 {[%clk 0:00:32]} 30. g5 {[%clk 0:01:02]}  hxg5 {[%clk 0:00:17]} 31. Rh5 {[%clk 0:00:46]}  Bxf3+ {[%clk 0:00:07]} 32. Nxf3 {[%clk 0:00:47]}  Qxf3+ {[%clk 0:00:07]} 33. Qxf3 {[%clk 0:00:48]}  Rxf3 {[%clk 0:00:07]} 34. Kxf3 {[%clk 0:00:49]}  Rc5 {[%clk 0:00:07]} 35. Kg4 {[%clk 0:00:46]}  Bf6 {[%clk 0:00:06]} 36. Rh6 {[%clk 0:00:45]}  Kf7 {[%clk 0:00:06]} 37. Rh7+ {[%clk 0:00:46]}  Kf8 {[%clk 0:00:06]} 38. Rb7 {[%clk 0:00:44]}  Bd8 {[%clk 0:00:05]} 39. Rb8 {[%clk 0:00:44]}  Ke7 {[%clk 0:00:06]} 40. Rb7+ {[%clk 0:00:38]}  Bc7 {[%clk 0:00:06]} 41. Ra7 {[%clk 0:00:39]}  Kd6 {[%clk 0:00:06]} 42. Ra8 {[%clk 0:00:38]}  Re5 {[%clk 0:00:05]} 43. b3 {[%clk 0:00:37]}  Kc5 {[%clk 0:00:05]} 44. Rc8 {[%clk 0:00:36]}  Kd6 {[%clk 0:00:05]} 45. Bc4 {[%clk 0:00:36]}  Re4+ {[%clk 0:00:04]} 46. Kf3 {[%clk 0:00:36]}  Rf4+ {[%clk 0:00:04]} 47. Ke2 {[%clk 0:00:36]}  e5 {[%clk 0:00:04]} 48. Re8 {[%clk 0:00:35]}  g4 {[%clk 0:00:03]} 49. Re6+ {[%clk 0:00:36]}  Kd7 {[%clk 0:00:04]} 50. Rg6 {[%clk 0:00:37]}  Bd6 {[%clk 0:00:04]} 51. Rg7+ {[%clk 0:00:35]}  Kc6 {[%clk 0:00:05]} 52. Rg6 {[%clk 0:00:36]}  Kc5 {[%clk 0:00:05]} 53. Rg8 {[%clk 0:00:36]}  e4 {[%clk 0:00:05]} 54. Rd8 {[%clk 0:00:34]}  d3+ {[%clk 0:00:05]} 55. Ke3 {[%clk 0:00:35]}  Rf3+ {[%clk 0:00:06]} 56. Kxe4 {[%clk 0:00:35]}  d2 {[%clk 0:00:06]} 57. Be2 {[%clk 0:00:35]}  Rxf2 {[%clk 0:00:07]} 58. Kd3 {[%clk 0:00:35]}  Bf4 {[%clk 0:00:06]} 59. Bd1 {[%clk 0:00:34]}  g3 {[%clk 0:00:06]} 60. Rg8 {[%clk 0:00:33]}  g2 {[%clk 0:00:06]} 61. Kc2 {[%clk 0:00:33]}  Kb4 {[%clk 0:00:06]} 62. Rg4 {[%clk 0:00:32]}  Ka3 {[%clk 0:00:07]} 63. Rg6 {[%clk 0:00:30]}  Bh2 {[%clk 0:00:07]} 64. Bf3 {[%clk 0:00:28]}  g1=Q {[%clk 0:00:07]} 65. Rxg1 {[%clk 0:00:28]}  Bxg1 {[%clk 0:00:08]} 66. Bd5 {[%clk 0:00:27]}  Bh2 {[%clk 0:00:08]} 67. Kd1 {[%clk 0:00:27]}  Bf4 {[%clk 0:00:09]} 68. Bc4 {[%clk 0:00:28]}  Rh2 {[%clk 0:00:09]} 69. Kc2 {[%clk 0:00:28]}  Rh1 {[%clk 0:00:09]} 70. Be2 {[%clk 0:00:29]}  Rc1+ {[%clk 0:00:10]} 71. Kd3 {[%clk 0:00:29]}  d1=Q+ {[%clk 0:00:11]} 72. Bxd1 {[%clk 0:00:30]}  Rxd1+ {[%clk 0:00:12]} 73. Kc4 {[%clk 0:00:31]}  Rb1 {[%clk 0:00:12]} 74. Kb5 {[%clk 0:00:32]}  Rxb3+ {[%clk 0:00:13]} 75. Ka6 {[%clk 0:00:27]}  Rb4 {[%clk 0:00:13]} 0-1


[Site "https://www.chess.com"]